[Event "25th Abu Dhabi Open 2018"]
[Site "Abu Dhabi"]
[Date "2018.08.14"]
[Round "8"]
[White "Al Saleh, Mohammad"]
[Black "Loay, Sameer"]
[Result "0-1"]
[ECO "B06"]
[WhiteElo "2012"]
[BlackElo "2043"]
[Annotator "NA"]
[PlyCount "116"]
[EventDate "2018.08.05"]
[EventType "swiss"]
[EventCountry "UAE"]
[SourceTitle "playchess.com"]
[Source "ChessBase"]
[SourceQuality "1"]
[TimeControl "5400+30"]

1. e4 {[%emt 0:05:37]} d6 {[%emt 0:00:00]} 2. d4 {[%emt 0:00:05]} g6 {[%emt 0:00:00]} 3. Nc3 {[%emt 0:00:18]} Bg7 {[%emt 0:00:00]} 4. f4 {[%emt 0:00:05]} Nc6 {[%emt 0:00:00]} 5. Be3 {[%emt 0:00:22]} Nf6 {[%emt 0:00:00]} 6. Nf3 {[%emt 0:00:59]} O-O {[%emt 0:00:04]} 7. e5 {[%emt 0:02:50]} dxe5 {[%emt 0:10:11]} 8. fxe5 {[%emt 0:02:07]} Ng4 {[%emt 0:04:45]} 9. Bg1 {[%emt 0:00:37]} f6 {[%emt 0:00:20]} 10. e6 {[%emt 0:08:25]} Nb4 {[%emt 0:08:11]} 11. Bc4 {[%emt 0:17:16]} c6 {[%emt 0:02:15]} 12. Qe2 {[%emt 0:04:17]} Nd5 {[%emt 0:00:28]} 13. h3 {[%emt 0:03:22]} Nh6 {[%emt 0:00:26]} 14. O-O-O {[%emt 0:03:20]} Nxc3 {[%emt 0:01:03]} 15. bxc3 {[%emt 0:00:11]} Nf5 {[%emt 0:00:31]} 16. Qe1 {[%emt 0:03:22]} Qa5 {[%emt 0:07:42]} 17. Kb2 {[%emt 0:03:58]} b5 {[%emt 0:03:58]} 18. Bb3 {[%emt 0:01:05]} Nd6 {[%emt 0:02:13]} 19. Ka1 {[%emt 0:05:05]} Qa3 {[%emt 0:03:40]} 20. Be3 {[%emt 0:01:01]} Nc4 {[%emt 0:00:02]} 21. Bc1 {[%emt 0:02:37]} Qd6 {[%emt 0:00:06]} 22. h4 {[%emt 0:08:30]} Bxe6 {[%emt 0:10:26]} 23. h5 {[%emt 0:01:05]} Bd5 {[%emt 0:01:43]} 24. hxg6 {[%emt 0:00:21]} hxg6 {[%emt 0:00:10]} 25. Qh4 {[%emt 0:03:53]} Kf7 {[%emt 0:02:22]} 26. Rhf1 {[%emt 0:02:14]} Rh8 {[%emt 0:10:00]} 27. Qg4 {[%emt 0:02:10]} f5 {[%emt 0:00:06]} 28. Ng5+ {[%emt 0:01:08]} Kg8 {[%emt 0:00:02]} 29. Qe2 {[%emt 0:00:42]} Bf6 {[%emt 0:01:42]} 30. g4 {[%emt 0:07:30]} e6 {[%emt 0:02:26]} 31. gxf5 {[%emt 0:00:31]} exf5 {[%emt 0:00:07]} 32. Rg1 {[%emt 0:01:13]} Kg7 {[%emt 0:00:37]} 33. Nf3 {[%emt 0:01:48]} Rae8 {[%emt 0:01:22]} 34. Qg2 {[%emt 0:00:31]} Bf7 {[%emt 0:00:25]} 35. Rdf1 {[%emt 0:02:43]} Re4 {[%emt 0:02:04]} 36. Rh1 {[%emt 0:01:22]} Rg4 {[%emt 0:01:12]} 37. Qe2 {[%emt 0:00:59]} Qg3 {[%emt 0:02:58]} 38. Rxh8 {[%emt 0:00:37]} Kxh8 {[%emt 0:00:01]} 39. Bxc4 {[%emt 0:00:55]} bxc4 {[%emt 0:06:30]} 40. Ne5 {[%emt 0:01:55]} Bxe5 {[%emt 0:00:56]} 41. dxe5 {[%emt 0:00:14]} Re4 {[%emt 0:01:57]} 42. Qd2 {[%emt 0:01:17]} Qxe5 {[%emt 0:00:47]} 43. Rh1+ {[%emt 0:01:24]} Kg8 {[%emt 0:00:06]} 44. Qd8+ {[%emt 0:00:26]} Be8 {[%emt 0:00:07]} 45. Bg5 {[%emt 0:01:17]} Qxc3+ {[%emt 0:01:08]} 46. Kb1 {[%emt 0:00:08]} Re1+ {[%emt 0:00:05]} 47. Rxe1 {[%emt 0:00:08]} Qxe1+ {[%emt 0:00:01]} 48. Kb2 {[%emt 0:00:26]} Qe5+ {[%emt 0:00:34]} 49. Kc1 {[%emt 0:00:43]} c3 {[%emt 0:00:16]} 50. Kb1 {[%emt 0:00:37]} Qb5+ {[%emt 0:00:19]} 51. Kc1 {[%emt 0:00:08]} Qf1+ {[%emt 0:00:17]} 52. Qd1 {[%emt 0:00:09]} Qxd1+ {[%emt 0:00:01]} 53. Kxd1 {[%emt 0:00:01]} Kf7 {[%emt 0:00:26]} 54. Ke2 {[%emt 0:00:14]} Ke6 {[%emt 0:00:11]} 55. Ke3 {[%emt 0:00:33]} Kd5 {[%emt 0:00:14]} 56. Bf6 {[%emt 0:00:37]} Kc4 {[%emt 0:00:10]} 57. Kf4 {[%emt 0:00:25]} c5 {[%emt 0:00:09]} 58. Be7 {[%emt 0:00:36]} Ba4 {[%emt 0:00:07]} 0-1

[Event "25th Abu Dhabi Open 2018"]
[Site "Abu Dhabi"]
[Date "2018.08.14"]
[Round "8"]
[White "Sameir, Ramez"]
[Black "Sahithi, Varshini M"]
[Result "0-1"]
[ECO "B07"]
[WhiteElo "2000"]
[BlackElo "1728"]
[Annotator "NA"]
[PlyCount "70"]
[EventDate "2018.08.05"]
[EventType "swiss"]
[EventCountry "UAE"]
[SourceTitle "playchess.com"]
[Source "ChessBase"]
[SourceQuality "1"]
[TimeControl "5400+30"]

1. e4 d6 2. d4 Nf6 3. Nc3 g6 4. f3 Bg7 5. Be3 O-O 6. Qd2 Nbd7 7. O-O-O c6 8. Bh6 b5 9. h4 b4 10. Nce2 Bxh6 11. Qxh6 Qa5 12. Kb1 Nb6 13. h5 e5 14. hxg6 fxg6 15. dxe5 Qxe5 16. Nf4 Qe7 17. Nxg6 hxg6 18. Qxg6+ Qg7 19. Qxg7+ Kxg7 20. Rxd6 Nxe4 21. Rdh6 Nd2+ 22. Kc1 Nxf1 23. Rh7+ Kg8 24. Rh8+ Kf7 25. R8h7+ Ke6 26. Ne2 Ne3 27. R1h6+ Kd5 28. c4+ Nexc4 29. Re7 Nd6 30. Rh5+ Rf5 31. Nf4+ Kc5 32. Re5+ Rxe5 33. Rxe5+ Nd5 34. a4 Kd4 35. Ng6 Bf5 0-1

[Event "25th Abu Dhabi Open 2018"]
[Site "Abu Dhabi"]
[Date "2018.08.14"]
[Round "8"]
[White "Masrahi, Abdulrahman A"]
[Black "Ammar, Sedrani"]
[Result "1/2-1/2"]
[ECO "D00"]
[WhiteElo "1976"]
[BlackElo "2109"]
[Annotator "NA"]
[PlyCount "113"]
[EventDate "2018.08.05"]
[EventType "swiss"]
[EventCountry "UAE"]
[SourceTitle "playchess.com"]
[Source "ChessBase"]
[SourceQuality "1"]
[TimeControl "5400+30"]

1. d4 {[%emt 0:05:27]} d5 {[%emt 0:00:00]} 2. Bf4 {[%emt 0:00:20]} c5 {[%emt 0:00:00]} 3. e3 {[%emt 0:00:05]} Nc6 {[%emt 0:00:32]} 4. c3 {[%emt 0:00:22]} Qb6 {[%emt 0:00:17]} 5. Qb3 {[%emt 0:00:28]} c4 {[%emt 0:00:14]} 6. Qc2 {[%emt 0:00:06]} e5 {[%emt 0:00:11]} 7. dxe5 {[%emt 0:05:59]} Bf5 {[%emt 0:00:12]} 8. Qc1 {[%emt 0:00:45]} g5 {[%emt 0:00:29]} 9. Bg3 {[%emt 0:00:59]} h5 {[%emt 0:00:24]} 10. h4 {[%emt 0:01:45]} gxh4 {[%emt 0:00:53]} 11. Rxh4 {[%emt 0:01:46]} Nge7 {[%emt 0:02:22]} 12. Nf3 {[%emt 0:08:06]} Ng6 {[%emt 0:02:04]} 13. Rh1 {[%emt 0:00:35]} h4 {[%emt 0:02:15]} 14. Bh2 {[%emt 0:20:09]} h3 {[%emt 0:02:55]} 15. Nbd2 {[%emt 0:06:44]} hxg2 {[%emt 0:09:29]} 16. Bxg2 {[%emt 0:00:09]} Bg7 {[%emt 0:00:06]} 17. b3 {[%emt 0:15:34]} Bxe5 {[%emt 0:05:20]} 18. Bxe5 {[%emt 0:02:11]} Rxh1+ {[%emt 0:00:09]} 19. Bxh1 {[%emt 0:00:07]} Ngxe5 {[%emt 0:00:16]} 20. Qa3 {[%emt 0:03:02]} O-O-O {[%emt 0:09:33]} 21. bxc4 {[%emt 0:05:19]} dxc4 {[%emt 0:01:26]} 22. Nd4 {[%emt 0:01:06]} Nxd4 {[%emt 0:05:14]} 23. cxd4 {[%emt 0:00:17]} Nd3+ {[%emt 0:03:41]} 24. Ke2 {[%emt 0:02:49]} Nb2 {[%emt 0:09:47]} 25. Be4 {[%emt 0:02:33]} Bxe4 {[%emt 0:02:27]} 26. Nxe4 {[%emt 0:00:02]} Nd3 {[%emt 0:00:27]} 27. Rg1 {[%emt 0:04:04]} f5 {[%emt 0:01:41]} 28. Nd2 {[%emt 0:03:45]} Nb4 {[%emt 0:10:42]} 29. Nxc4 {[%emt 0:01:17]} Qb5 {[%emt 0:02:39]} 30. Kd2 {[%emt 0:01:07]} Nd5 {[%emt 0:15:49]} 31. Nd6+ {[%emt 0:02:01]} Rxd6 {[%emt 0:00:02]} 32. Qxd6 {[%emt 0:00:04]} Qb2+ {[%emt 0:00:02]} 33. Ke1 {[%emt 0:01:21]} Qb1+ {[%emt 0:01:45]} 34. Ke2 {[%emt 0:00:32]} Nc3+ {[%emt 0:00:10]} 35. Kf3 {[%emt 0:01:24]} Qe4+ {[%emt 0:02:07]} 36. Kg3 {[%emt 0:00:15]} Ne2+ {[%emt 0:01:43]} 37. Kh2 {[%emt 0:00:53]} Qh4+ {[%emt 0:00:16]} 38. Kg2 {[%emt 0:00:02]} Qg4+ {[%emt 0:00:14]} 39. Kf1 {[%emt 0:00:01]} Nxg1 {[%emt 0:00:57]} 40. Qf8+ {[%emt 0:02:18]} Kd7 {[%emt 0:01:55]} 41. Qf7+ {[%emt 0:00:05]} Kd6 {[%emt 0:00:29]} 42. Qf6+ {[%emt 0:00:04]} Kd5 {[%emt 0:01:20]} 43. Qe5+ {[%emt 0:00:19]} Kc4 {[%emt 0:01:21]} 44. Qc5+ {[%emt 0:00:08]} Kd3 {[%emt 0:00:41]} 45. Qb5+ {[%emt 0:00:21]} Kc2 {[%emt 0:00:14]} 46. Qc4+ {[%emt 0:00:10]} Kb1 {[%emt 0:00:24]} 47. Qb3+ {[%emt 0:01:03]} Ka1 {[%emt 0:00:07]} 48. Qc3+ {[%emt 0:00:06]} Kxa2 {[%emt 0:00:04]} 49. Qa5+ {[%emt 0:00:15]} Kb3 {[%emt 0:01:47]} 50. Qb5+ {[%emt 0:00:10]} Kc3 {[%emt 0:00:07]} 51. Qc5+ {[%emt 0:00:47]} Kd3 {[%emt 0:00:07]} 52. Qb5+ {[%emt 0:00:00]} Kc2 {[%emt 0:01:05]} 53. Qc4+ {[%emt 0:00:00]} Kb2 {[%emt 0:00:08]} 54. Qb4+ {[%emt 0:00:00]} Kc2 {[%emt 0:00:13]} 55. Qc4+ {[%emt 0:00:11]} Kd2 {[%emt 0:00:02]} 56. Qb4+ {[%emt 0:00:09]} Kd3 {[%emt 0:00:05]} 57. Qb3+ {[%emt 0:00:15]} 1/2-1/2

[Event "25th Abu Dhabi Open 2018"]
[Site "Abu Dhabi"]
[Date "2018.08.14"]
[Round "8"]
[White "Lagutin, Nelman"]
[Black "Hallaeva, Bahar"]
[Result "0-1"]
[WhiteElo "1955"]
[BlackElo "2098"]
[Annotator "NA"]
[PlyCount "60"]
[EventDate "2018.08.05"]
[EventType "swiss"]
[EventCountry "UAE"]
[SourceTitle "playchess.com"]
[Source "ChessBase"]
[SourceQuality "1"]
[TimeControl "5400+30"]

1. e4 e5 2. Nf3 Nc6 3. d4 exd4 4. Bc4 Nf6 5. e5 d5 6. Bb5 Ne4 7. Nxd4 Bd7 8. Nxc6 bxc6 9. Bd3 Qh4 10. O-O Bc5 11. Bxe4 dxe4 12. Nc3 Bf5 13. Be3 Qe7 14. e6 Bd6 15. exf7+ Qxf7 16. Qd4 Qh5 17. g3 Qg6 18. f4 O-O 19. Rae1 h5 20. Ne2 h4 21. c4 Bb4 22. Rd1 Be7 23. Bf2 Bg4 24. Qe3 Bc5 25. Qd2 e3 26. Bxe3 Bxe3+ 27. Qxe3 Rae8 28. f5 Qf6 29. Qc5 Bxe2 30. Rde1 Bxf1 0-1

[Event "25th Abu Dhabi Open 2018"]
[Site "Abu Dhabi"]
[Date "2018.08.14"]
[Round "8"]
[White "Mahitosh, Dey"]
[Black "Laabi Chian, Majid"]
[Result "0-1"]
[ECO "B94"]
[WhiteElo "1887"]
[BlackElo "2013"]
[Annotator "NA"]
[PlyCount "99"]
[EventDate "2018.08.05"]
[EventType "swiss"]
[EventCountry "UAE"]
[SourceTitle "playchess.com"]
[Source "ChessBase"]
[SourceQuality "1"]
[TimeControl "5400+30"]

1. e4 {[%emt 0:00:00]} c5 {[%emt 0:03:17]} 2. Nf3 {[%emt 0:00:00]} d6 {[%emt 0:00:10]} 3. d4 {[%emt 0:00:00]} cxd4 {[%emt 0:00:10]} 4. Nxd4 {[%emt 0:00:00]} Nf6 {[%emt 0:00:10]} 5. Nc3 {[%emt 0:00:00]} a6 {[%emt 0:00:44]} 6. Bg5 {[%emt 0:00:04]} Nbd7 {[%emt 0:00:26]} 7. f4 {[%emt 0:00:11]} b5 {[%emt 0:00:39]} 8. Nd5 {[%emt 0:02:52]} Bb7 {[%emt 0:00:36]} 9. Bxf6 {[%emt 0:00:35]} Nxf6 {[%emt 0:01:49]} 10. Nxf6+ {[%emt 0:00:51]} gxf6 {[%emt 0:01:20]} 11. Nxb5 {[%emt 0:02:09]} Qa5+ {[%emt 0:00:07]} 12. Nc3 {[%emt 0:00:37]} Bxe4 {[%emt 0:00:14]} 13. Qd4 {[%emt 0:00:58]} Bb7 {[%emt 0:03:16]} 14. b4 {[%emt 0:00:45]} Qc7 {[%emt 0:02:40]} 15. b5 {[%emt 0:00:58]} e5 {[%emt 0:01:27]} 16. Qc4 {[%emt 0:01:51]} Qxc4 {[%emt 0:15:49]} 17. Bxc4 {[%emt 0:00:03]} axb5 {[%emt 0:24:53]} 18. Bxb5+ {[%emt 0:00:23]} Kd8 {[%emt 0:00:22]} 19. fxe5 {[%emt 0:05:03]} Rc8 {[%emt 0:00:31]} 20. Ne2 {[%emt 0:01:03]} Rg8 {[%emt 0:04:25]} 21. O-O-O {[%emt 0:02:03]} Rxg2 {[%emt 0:07:33]} 22. exf6 {[%emt 0:03:39]} Be4 {[%emt 0:00:06]} 23. c3 {[%emt 0:01:16]} Bh6+ {[%emt 0:01:49]} 24. Kb2 {[%emt 0:00:10]} Rb8 {[%emt 0:00:01]} 25. a4 {[%emt 0:03:59]} Rxe2+ {[%emt 0:01:06]} 26. Ka3 {[%emt 0:00:06]} Rd2 {[%emt 0:01:34]} 27. Rxd2 {[%emt 0:00:06]} Bxd2 {[%emt 0:00:08]} 28. Rd1 {[%emt 0:00:03]} Bf4 {[%emt 0:00:45]} 29. Re1 {[%emt 0:01:05]} d5 {[%emt 0:00:06]} 30. c4 {[%emt 0:00:04]} Bd6+ {[%emt 0:01:27]} 31. Kb2 {[%emt 0:00:12]} Kc7 {[%emt 0:00:41]} 32. cxd5 {[%emt 0:00:07]} Bxd5 {[%emt 0:00:04]} 33. Rc1+ {[%emt 0:00:06]} Kb6 {[%emt 0:00:17]} 34. Rd1 {[%emt 0:00:08]} Be5+ {[%emt 0:00:08]} 35. Ka3 {[%emt 0:00:05]} Rd8 {[%emt 0:01:25]} 36. Bc4 {[%emt 0:00:20]} Kc5 {[%emt 0:00:06]} 37. Bxd5 {[%emt 0:00:06]} Rxd5 {[%emt 0:00:04]} 38. Rc1+ {[%emt 0:00:03]} Kd6 {[%emt 0:00:57]} 39. Kb4 {[%emt 0:00:04]} Bxf6 {[%emt 0:00:35]} 40. a5 {[%emt 0:00:07]} Bd4 {[%emt 0:00:21]} 41. a6 {[%emt 0:00:28]} Bb6 {[%emt 0:00:44]} 42. Rf1 {[%emt 0:00:08]} f5 {[%emt 0:00:15]} 43. Ra1 {[%emt 0:00:06]} Ba7 {[%emt 0:00:10]} 44. Rc1 {[%emt 0:00:10]} Kd7 {[%emt 0:01:30]} 45. Rf1 {[%emt 0:00:25]} Ke6 {[%emt 0:00:12]} 46. Rc1 {[%emt 0:00:13]} Kd7 {[%emt 0:01:15]} 47. Rc4 {[%emt 0:00:09]} Rd4 {[%emt 0:00:18]} 48. Rxd4+ {[%emt 0:00:02]} Bxd4 49. Kc4 Ba7 {[%emt 0:00:58]} 50. Kd5 {[%emt 0:00:08]} 0-1

[Event "25th Abu Dhabi Open 2018"]
[Site "Abu Dhabi"]
[Date "2018.08.14"]
[Round "8"]
[White "Abid, Ali Mujawar"]
[Black "Haase, Pavel"]
[Result "0-1"]
[ECO "B07"]
[WhiteElo "1880"]
[BlackElo "2177"]
[Annotator "NA"]
[PlyCount "67"]
[EventDate "2018.08.05"]
[EventType "swiss"]
[EventCountry "UAE"]
[SourceTitle "playchess.com"]
[Source "ChessBase"]
[SourceQuality "1"]
[TimeControl "5400+30"]

1. e4 d6 2. d4 Nf6 3. Nc3 g6 4. Be2 Bg7 5. Be3 Nbd7 6. Qd2 h6 7. f4 Nb6 8. h3 c6 9. O-O-O Be6 10. g4 Nc4 11. Bxc4 Bxc4 12. e5 Nd5 13. b3 Nxc3 14. Qxc3 Bd5 15. Rh2 Qc7 16. Qb2 b5 17. Ne2 h5 18. g5 b4 19. c4 bxc3 20. Nxc3 O-O 21. Nxd5 cxd5+ 22. Kb1 Qd7 23. Qg2 Rfd8 24. Rc1 a5 25. Ka1 Qb7 26. Qf1 a4 27. bxa4 Rxa4 28. Rb2 Qa7 29. Qd3 Ra8 30. Qb1 dxe5 31. fxe5 Bxe5 32. dxe5 Qxe3 33. Rf1 Qxe5 34. Qc2 0-1

[Event "25th Abu Dhabi Open 2018"]
[Site "Abu Dhabi"]
[Date "2018.08.14"]
[Round "8"]
[White "Aditya, Varun Gampa"]
[Black "Bauyrzhan, Arnash"]
[Result "1-0"]
[ECO "B40"]
[WhiteElo "1874"]
[BlackElo "2007"]
[Annotator "NA"]
[PlyCount "122"]
[EventDate "2018.08.05"]
[EventType "swiss"]
[EventCountry "UAE"]
[SourceTitle "playchess.com"]
[Source "ChessBase"]
[SourceQuality "1"]
[TimeControl "5400+30"]

1. e4 c5 2. Nf3 e6 3. d4 cxd4 4. Nxd4 a6 5. c4 Nf6 6. Nc3 Bb4 7. Qd3 Qc7 8. a3 Bxc3+ 9. Qxc3 O-O 10. Bd3 d6 11. O-O e5 12. Ne2 Be6 13. Bg5 Nfd7 14. Rac1 Nc6 15. b4 Rac8 16. Rfd1 f6 17. Be3 Ne7 18. c5 d5 19. Qb3 Bf7 20. exd5 Nxd5 21. Bf5 Nf4 22. Qc2 Nxe2+ 23. Qxe2 Rcd8 24. Qd3 Kh8 25. Bxd7 Be8 26. c6 bxc6 27. Qd6 Qxd6 28. Rxd6 Rxd7 29. Rcxc6 Rxd6 30. Rxd6 Bb5 31. a4 Bxa4 32. Rxa6 Rd8 33. h4 Be8 34. Bc5 Kg8 35. Ra7 Rd7 36. Ra8 Kf7 37. Rb8 Rc7 38. Be3 Bc6 39. Bc5 Rb7 40. Rc8 Bb5 41. Rd8 Ke6 42. Rd6+ Kf5 43. f3 Kg6 44. Kf2 Kf7 45. Kg3 f5 46. h5 Bc4 47. h6 gxh6 48. Rxh6 Kg7 49. Rd6 Bb3 50. Kf2 Bc4 51. g3 Kf7 52. Ke3 Bf1 53. Rh6 Kg7 54. Re6 f4+ 55. gxf4 exf4+ 56. Kxf4 Bc4 57. Rd6 Be2 58. Kg3 Rf7 59. f4 h5 60. Be3 Rb7 61. Bc5 Rf7 1-0

[Event "25th Abu Dhabi Open 2018"]
[Site "Abu Dhabi"]
[Date "2018.08.15"]
[Round "9"]
[White "Haase, Pavel"]
[Black "Aditya, Varun Gampa"]
[Result "0-1"]
[ECO "A35"]
[WhiteElo "2177"]
[BlackElo "1874"]
[Annotator "NA"]
[PlyCount "98"]
[EventDate "2018.08.05"]
[EventType "swiss"]
[EventCountry "UAE"]
[SourceTitle "playchess.com"]
[Source "ChessBase"]
[SourceQuality "1"]
[TimeControl "5400+30"]

1. c4 {[%emt 0:00:00]} c5 {[%emt 0:00:26]} 2. Nc3 {[%emt 0:00:49]} Nc6 {[%emt 0:00:01]} 3. e3 {[%emt 0:02:55]} Nf6 {[%emt 0:01:43]} 4. Nf3 {[%emt 0:00:54]} g6 {[%emt 0:00:30]} 5. Qb3 {[%emt 0:08:06]} Bg7 {[%emt 0:01:15]} 6. d4 {[%emt 0:02:31]} cxd4 {[%emt 0:02:10]} 7. exd4 {[%emt 0:01:00]} O-O {[%emt 0:02:37]} 8. Be2 {[%emt 0:05:57]} d5 {[%emt 0:04:16]} 9. cxd5 {[%emt 0:00:59]} Na5 {[%emt 0:00:08]} 10. Qb5 {[%emt 0:10:07]} a6 {[%emt 0:00:32]} 11. Qc5 {[%emt 0:03:18]} b6 {[%emt 0:00:55]} 12. Qb4 {[%emt 0:01:55]} Bb7 {[%emt 0:01:53]} 13. d6 {[%emt 0:01:15]} exd6 {[%emt 0:03:03]} 14. Bf4 {[%emt 0:02:19]} d5 {[%emt 0:02:43]} 15. O-O {[%emt 0:07:11]} Re8 {[%emt 0:01:57]} 16. Rfe1 {[%emt 0:11:39]} b5 {[%emt 0:00:48]} 17. Be5 {[%emt 0:12:58]} Nc4 {[%emt 0:04:59]} 18. a4 {[%emt 0:06:10]} Bc6 {[%emt 0:01:27]} 19. axb5 {[%emt 0:01:12]} axb5 {[%emt 0:00:01]} 20. Qc5 {[%emt 0:03:53]} Qd7 {[%emt 0:00:54]} 21. Bxc4 {[%emt 0:02:03]} bxc4 {[%emt 0:00:46]} 22. Rxa8 {[%emt 0:00:20]} Rxa8 {[%emt 0:00:46]} 23. Bg3 {[%emt 0:01:35]} Ne4 {[%emt 0:03:50]} 24. Nxe4 {[%emt 0:02:27]} dxe4 {[%emt 0:00:02]} 25. Ne5 {[%emt 0:00:23]} Bxe5 {[%emt 0:00:02]} 26. Bxe5 {[%emt 0:00:27]} Qd5 {[%emt 0:00:37]} 27. Qe7 {[%emt 0:01:03]} Qe6 {[%emt 0:00:24]} 28. Qh4 {[%emt 0:03:02]} Bd5 {[%emt 0:01:24]} 29. g4 {[%emt 0:00:25]} Bc6 {[%emt 0:01:26]} 30. g5 {[%emt 0:01:17]} e3 {[%emt 0:01:47]} 31. fxe3 {[%emt 0:00:53]} c3 {[%emt 0:00:59]} 32. h3 {[%emt 0:01:01]} cxb2 {[%emt 0:04:12]} 33. Qh6 {[%emt 0:00:58]} Qxe5 {[%emt 0:00:32]} 34. dxe5 {[%emt 0:00:17]} Ra1 {[%emt 0:00:04]} 35. Qh4 {[%emt 0:01:05]} Rxe1+ {[%emt 0:00:08]} 36. Qxe1 {[%emt 0:00:01]} Be4 {[%emt 0:00:06]} 37. Qa5 {[%emt 0:02:05]} b1=Q+ {[%emt 0:00:06]} 38. Kf2 {[%emt 0:00:04]} Qc2+ {[%emt 0:00:13]} 39. Ke1 {[%emt 0:00:07]} Qd3 {[%emt 0:00:50]} 40. Kf2 {[%emt 0:00:05]} Bc6 {[%emt 0:01:03]} 41. h4 {[%emt 0:01:31]} Qd5 {[%emt 0:00:31]} 42. Qb6 {[%emt 0:00:14]} Qd2+ {[%emt 0:00:38]} 43. Kf1 {[%emt 0:00:09]} Bf3 {[%emt 0:00:31]} 44. Qb5 {[%emt 0:00:16]} Qg2+ {[%emt 0:02:25]} 45. Ke1 {[%emt 0:00:02]} Qg1+ {[%emt 0:00:07]} 46. Kd2 {[%emt 0:00:06]} Qf2+ {[%emt 0:00:08]} 47. Kc3 {[%emt 0:00:26]} Qxe3+ {[%emt 0:00:08]} 48. Kb4 {[%emt 0:00:08]} Qe4+ {[%emt 0:00:20]} 49. Ka3 {[%emt 0:00:27]} Qa8+ {[%emt 0:00:09]} 0-1

[Event "25th Abu Dhabi Open 2018"]
[Site "Abu Dhabi"]
[Date "2018.08.15"]
[Round "9"]
[White "Ammar, Sedrani"]
[Black "Mahitosh, Dey"]
[Result "1/2-1/2"]
[ECO "D02"]
[WhiteElo "2109"]
[BlackElo "1887"]
[Annotator "NA"]
[PlyCount "70"]
[EventDate "2018.08.05"]
[EventType "swiss"]
[EventCountry "UAE"]
[SourceTitle "playchess.com"]
[Source "ChessBase"]
[SourceQuality "1"]
[TimeControl "5400+30"]

1. d4 d5 2. Nf3 Nf6 3. Bf4 c5 4. e3 Nc6 5. Nc3 c4 6. Be2 e6 7. O-O Bd6 8. Bg5 O-O 9. b3 Qa5 10. Bxf6 Qxc3 11. Bh4 b5 12. a3 Qa5 13. b4 Qc7 14. c3 Bd7 15. Bg3 a5 16. Bxd6 Qxd6 17. Qc2 f5 18. Nd2 Ra7 19. f4 Rfa8 20. Rac1 axb4 21. axb4 Ra2 22. Qd1 Rb2 23. Rc2 Raa2 24. Rxb2 Rxb2 25. Nf3 Qb8 26. Ne5 Nxe5 27. fxe5 Qa8 28. Bf3 Be8 29. Qa1 Ra2 30. Qc1 h6 31. Qb1 Bg6 32. g4 Qa3 33. Qc1 fxg4 34. Qxa3 Rxa3 35. Bxg4 Ra6 1/2-1/2

[Event "25th Abu Dhabi Open 2018"]
[Site "Abu Dhabi"]
[Date "2018.08.15"]
[Round "9"]
[White "Hallaeva, Bahar"]
[Black "Gandhi, Anish"]
[Result "0-1"]
[ECO "B22"]
[WhiteElo "2098"]
[BlackElo "2016"]
[Annotator "NA"]
[PlyCount "171"]
[EventDate "2018.08.05"]
[EventType "swiss"]
[EventCountry "UAE"]
[SourceTitle "playchess.com"]
[Source "ChessBase"]
[SourceQuality "1"]
[TimeControl "5400+30"]

1. e4 c5 2. c3 Nf6 3. e5 Nd5 4. Nf3 Nc6 5. Bc4 Nb6 6. Bb3 c4 7. Bc2 Qc7 8. Qe2 g5 9. Nxg5 Qxe5 10. Qxe5 Nxe5 11. O-O h6 12. Ne4 d5 13. Ng3 h5 14. h3 Bd7 15. b3 O-O-O 16. a4 a5 17. Ba3 e6 18. Bxf8 Rdxf8 19. bxc4 Nexc4 20. d3 Nd6 21. Nd2 h4 22. Ne2 e5 23. Nf3 f6 24. Kh2 Bc6 25. Rfe1 Rfg8 26. Bb3 Rg7 27. Ra2 Nd7 28. d4 Ne4 29. Rf1 Rh5 30. Kh1 Rf5 31. Bc2 Rh5 32. Bb3 Nb6 33. Bd1 Nc4 34. Bb3 Ncd6 35. Rc2 Kd7 36. Neg1 Nc4 37. Rd1 Ke6 38. Re1 Ncd6 39. Ree2 Kf5 40. Re1 Kg6 41. Rd1 Nc4 42. Ne1 Na3 43. Ra2 Nc4 44. Rc2 Kh6 45. Ngf3 Rf5 46. Rdc1 Kh5 47. Re2 Ncd6 48. Bd1 Kh6 49. Nd3 Nf7 50. Ra2 Rh5 51. Rb2 Rg8 52. Bb3 Nfg5 53. Nfe1 Ne6 54. Nf3 N6g5 55. Nfe1 Nf7 56. Re2 Nfd6 57. Nf3 Re8 58. Bd1 b5 59. Ra2 Nc4 60. Bb3 bxa4 61. Bxa4 Bxa4 62. Rxa4 Rb8 63. Nh2 Kg6 64. Ng4 Kf5 65. Ne3+ Nxe3 66. fxe3 Ng3+ 67. Kh2 Ke4 68. Nc5+ Kxe3 69. Ra2 Kf4 70. Rxa5 e4 71. Ra2 e3 72. Nd7 Rc8 73. Nxf6 Rf5 74. Ng4 e2 75. Nf2 Ke3 76. Ng4+ Ke4 77. Rac2 Rcf8 78. Ne5 Rf1 79. Nf3 Ke3 80. c4 Rxc1 81. Rxc1 dxc4 82. d5 Kf2 83. d6 Rd8 84. Rxc4 Rxd6 85. Rxh4 Rd1 86. Rf4 0-1